bitfinex-derivatives/quotes_SOLF0:USTF0_20250613
["timestamp","ask_amount","ask_price","bid_price","bid_amount"]
[1749843926403,0.05248718,144.93,144.92,6.8972]
[1749843926912,0.05248718,144.93,144.91,6.8975]
[1749843930213,0.05248718,144.93,144.92,6.8972]
[1749843930611,0.05248718,144.93,144.92,43.1172]
[1749843931300,0.05248718,144.93,144.92,36.22]
[1749843932211,0.05248718,144.93,144.9,0.05300321]
[1749843932410,7.47190159,144.92,144.86,36.22]
[1749843932714,7.47190159,144.9,144.83,36.22]
[1749843932902,7.47190159,144.88,144.83,36.22]
[1749843933511,0.04382381,144.87,144.81,397.06]
[1749843933715,7.47190159,144.86,144.81,397.06]
[1749843933915,6.9015,144.83,144.81,397.06]
[1749843934117,0.05249983,144.83,144.8,43.1227]
[1749843934712,6.95399983,144.83,144.8,43.1227]
[1749843935010,0.05249983,144.83,144.8,43.1227]
[1749843935210,0.05249983,144.83,144.81,7.47828091]
[1749843936014,0.05249983,144.83,144.82,6.902]
[1749843936806,0.05249983,144.83,144.81,6.9022]
[1749843937018,0.05249983,144.83,144.8,36.22]
[1749843937315,0.05249983,144.83,144.81,6.9024]
[1749843937517,0.05249983,144.83,144.8,36.22]
[1749843939010,0.05249983,144.83,144.81,6.9022]
[1749843939211,0.05249983,144.83,144.8,47.29827067]
[1749843939512,0.05249983,144.83,144.81,6.9021]
[1749843939917,0.05249983,144.83,144.8,36.22]
[1749843940312,0.05249983,144.83,144.81,6.9024]
[1749843941322,0.05249983,144.83,144.82,6.902]
[1749843941917,36.24,144.94,144.86,6.8999]
[1749843942311,11.077789,144.93,144.85,36.24]
[1749843942512,11.077789,144.91,144.85,36.24]
[1749843942923,6.8991,144.88,144.87,0.04471017]
[1749843943721,9.1276,144.88,144.87,0.04471017]
[1749843945220,6.9005,144.86,144.82,43.1418]
[1749843945416,6.9005,144.86,144.82,36.24]
[1749843945718,6.901,144.85,144.82,43.1419]
[1749843945910,4.5376,144.88,144.82,36.24]
[1749843946115,6.9007,144.85,144.82,36.24]
[1749843946917,6.9007,144.85,144.82,43.1419]
[1749843947223,0.05099416,144.86,144.79,36.24]
[1749843947522,0.04741572,144.84,144.79,36.24]
[1749843947821,6.9023,144.82,144.79,36.24]
[1749843948119,0.04741572,144.84,144.79,36.24]
[1749843948120,6.9025,144.81,144.79,36.24]
[1749843948323,0.04741572,144.84,144.79,36.24]
[1749843948624,6.9023,144.82,144.79,36.24]
[1749843949519,6.9026,144.81,144.79,36.24]
[1749843950324,6.9022,144.82,144.79,43.1433]
[1749843950918,6.9025,144.81,144.79,36.24]
[1749843951418,6.9022,144.82,144.79,36.24]
[1749843951618,6.9022,144.82,144.79,43.1432]
[1749843951827,0.04741572,144.84,144.79,36.24]
[1749843952023,6.94871572,144.84,144.79,36.24]
[1749843952225,6.94871572,144.84,144.81,6.9021]
[1749843952524,6.94871572,144.84,144.79,36.24]
[1749843952820,6.94871572,144.84,144.8,6.9027]
[1749843953020,0.04741572,144.84,144.79,36.24]
[1749843953215,0.04741572,144.84,144.81,11.077789]
[1749843954018,0.04741572,144.84,144.83,6.9015]
[1749843954217,0.04741572,144.84,144.83,43.1415]
[1749843954419,0.04741572,144.84,144.83,36.24]
[1749843955424,0.04741572,144.84,144.83,43.1415]
[1749843957026,0.04741572,144.84,144.83,36.24]
[1749843957927,0.04741572,144.84,144.83,43.1415]
[1749843958632,0.04741572,144.84,144.83,36.24]
[1749843959428,0.04741572,144.84,144.83,43.1415]
[1749843960331,0.04741572,144.84,144.83,36.24]
[1749843961131,0.04741572,144.84,144.83,43.1415]
[1749843962227,0.04741572,144.84,144.83,36.24]
[1749843963535,6.94841572,144.84,144.83,36.24]
[1749843963831,0.04741572,144.84,144.8,36.18]
[1749843964227,0.04741572,144.84,144.81,6.9024]
[1749843964428,0.04741572,144.84,144.8,36.18]
[1749843964732,6.902,144.82,144.8,36.18]
[1749843965524,6.9025,144.81,144.8,36.18]
[1749843965731,6.9025,144.81,144.77,36.18]
[1749843965931,0.05165883,144.8,144.77,36.18]
[1749843966533,0.05165883,144.8,144.77,43.084]
[1749843966733,6.95485883,144.8,144.77,43.084]
[1749843967231,6.9039,144.78,144.74,397.26]
[1749843967438,0.0478519,144.77,144.74,433.44]
[1749843968033,0.0478519,144.77,144.75,11.077789]
[1749843969139,0.0478519,144.77,144.76,6.9048]
[1749843971733,36.18,144.84,144.79,6.9034]
[1749843972038,6.902,144.82,144.78,36.2]
[1749843972237,6.902,144.82,144.78,43.1036]
[1749843972443,6.902,144.82,144.78,36.2]
[1749843972645,0.04980815,144.81,144.79,0.05043887]
[1749843973346,0.04980815,144.81,144.79,6.95363887]
[1749843973636,0.04980815,144.81,144.79,0.05043887]
[1749843974038,6.9029,144.8,144.79,0.05043887]
[1749843974442,0.04980815,144.81,144.79,0.05043887]
[1749843975140,6.9029,144.8,144.79,0.05043887]
[1749843975446,7.48536932,144.8,144.66,397.56]
[1749843975652,48.23636932,144.8,144.7,7.48536932]
[1749843975837,48.23636932,144.8,144.7,8.68767028]
[1749843976239,6.9052,144.76,144.7,8.68767028]
[1749843976550,0.04557006,144.74,144.7,8.68767028]
[1749843977248,0.04557006,144.74,144.72,11.09023786]
[1749843977438,36.2,144.84,144.73,36.2]
[1749843977638,5.43594539,144.83,144.75,11.09023786]
[1749843977946,6.9027,144.81,144.75,147.45023786]
[1749843978346,4.4126,144.84,144.77,11.13930898]
[1749843978550,0.04436444,144.82,144.79,11.09023786]
[1749843978751,0.04436444,144.82,144.79,11.14149958]
[1749843978941,0.04436444,144.82,144.81,6.9025]
[1749843979547,0.04436444,144.82,144.79,11.14149958]
[1749843980048,0.04436444,144.82,144.81,6.9025]
[1749843981239,0.04436444,144.82,144.8,6.9027]
[1749843981445,0.04436444,144.82,144.79,0.05126172]
[1749843981648,6.94656444,144.82,144.79,0.05126172]
[1749843982045,0.04436444,144.82,144.79,0.05126172]
[1749843983347,6.94656444,144.82,144.79,6.95456172]
[1749843983551,0.04436444,144.82,144.79,0.05126172]
[1749843984551,6.84986444,144.82,144.75,440.7251]
[1749843984759,6.84986444,144.82,144.75,36.2]
[1749843985053,13.75196444,144.82,144.79,6.9034]
[1749843985254,2.36016444,144.82,144.77,11.09023786]
[1749843985556,9.26246444,144.82,144.79,6.9033]
[1749843985751,2.36016444,144.82,144.77,11.09023786]
[1749843985957,0.04436444,144.82,144.77,11.09023786]
[1749843986354,6.94666444,144.82,144.79,6.9031]
[1749843986555,0.04436444,144.82,144.77,11.09023786]
[1749843987057,0.04436444,144.82,144.77,6.9043]
[1749843987452,6.9032,144.8,144.77,6.9043]
[1749843988060,6.9032,144.8,144.78,6.9038]
[1749843988358,6.95245499,144.8,144.75,36.2]
[1749843988558,6.95245499,144.8,144.77,6.9043]
[1749843988750,0.04925499,144.8,144.75,36.2]
[1749843988947,0.04925499,144.8,144.76,6.9046]
[1749843989258,6.95255499,144.8,144.76,6.9046]
[1749843989649,0.04925499,144.8,144.77,6.9041]
[1749843989853,0.04925499,144.8,144.75,36.2]
[1749843990353,0.04925499,144.8,144.79,6.9034]
[1749843990656,0.04925499,144.8,144.79,43.0634]
[1749843991559,0.04925499,144.8,144.79,36.16]
[1749843993259,0.04925499,144.8,144.79,43.0634]
[1749843993660,0.04925499,144.8,144.79,36.16]
[1749843993960,0.04925499,144.8,144.79,43.0634]
[1749843994164,0.04925499,144.8,144.79,6.9034]
[1749843994349,0.04925499,144.8,144.76,36.16]
[1749843994555,0.04925499,144.8,144.78,6.9036]
[1749843995357,0.04925499,144.8,144.76,36.16]
[1749843996166,6.95245499,144.8,144.76,43.0644]
[1749843996363,0.04925499,144.8,144.76,36.16]
[1749843996769,0.04925499,144.8,144.77,11.08124614]
[1749843997064,0.04925499,144.8,144.79,6.9034]
[1749843999669,2.3496,144.85,144.82,6.9017]
[1749843999871,2.3496,144.85,144.8,36.16]
[1749844000075,2.2227,144.87,144.81,36.16]
[1749844000763,0.04716081,144.85,144.83,0.04561435]
[1749844001463,6.901,144.84,144.83,0.04561435]
[1749844003572,0.04716081,144.85,144.83,0.04561435]
[1749844004275,6.901,144.84,144.83,0.04561435]
[1749844006580,6.94786081,144.85,144.83,0.04561435]
[1749844006871,0.04716081,144.85,144.83,0.04561435]
[1749844007377,6.94816081,144.85,144.83,0.04561435]
[1749844007784,6.901,144.84,144.83,0.04561435]
[1749844008270,6.94796081,144.85,144.83,0.04561435]
[1749844008869,0.04716081,144.85,144.83,0.04561435]
[1749844009073,0.04716081,144.85,144.84,6.901]
[1749844010682,4.5668,144.9,144.86,6.8997]
[1749844010884,4.5668,144.9,144.79,1.11]
[1749844010885,2.325,144.9,144.85,47.22124614]
[1749844011086,36.14,144.92,144.86,36.14]
[1749844011277,2.265,144.93,144.86,36.14]
[1749844011786,6.8986,144.9,144.88,0.04360132]
[1749844012372,6.94947684,144.91,144.88,0.04360132]
[1749844012988,0.05157684,144.91,144.88,0.04360132]
[1749844013585,6.8986,144.89,144.88,0.04360132]
[1749844013778,0.05157684,144.91,144.88,0.04360132]
[1749844014581,6.94947684,144.91,144.88,0.04360132]
[1749844014779,0.05157684,144.91,144.88,0.04360132]
[1749844015183,0.05157684,144.91,144.9,6.8981]
[1749844015392,2.3513,144.97,144.9,36.14]
[1749844015588,9.2464,144.97,144.93,6.8964]
[1749844015984,2.3513,144.97,144.93,6.8964]
[1749844016384,0.049377,144.96,144.94,0.0453]
[1749844016791,6.944777,144.96,144.94,0.0453]
[1749844017292,0.049377,144.96,144.94,0.0453]
[1749844018295,0.049377,144.96,144.94,6.9414]
[1749844018592,0.049377,144.96,144.94,0.0453]
[1749844018790,0.049377,144.96,144.94,36.1853]
[1749844018987,0.049377,144.96,144.94,43.0814]
[1749844019689,0.049377,144.96,144.94,36.1853]
[1749844020393,0.049377,144.96,144.8,17.11971481]
[1749844020584,11.05696024,144.96,144.86,11.05696024]
[1749844020791,11.05696024,144.92,144.85,36.1]
[1749844020989,6.8998,144.87,144.85,36.1]
[1749844021188,11.07491598,144.91,144.85,36.1]
[1749844021494,0.04842753,144.89,144.87,0.04389416]
[1749844022391,0.04842753,144.89,144.87,6.94329416]
[1749844022586,0.04842753,144.89,144.87,0.04389416]
[1749844023499,4.5383,144.95,144.88,11.07491598]
[1749844023692,4.5383,144.95,144.89,36.1]
[1749844024298,6.8956,144.96,144.9,11.07491598]
[1749844024593,0.0495514,144.94,144.92,0.04726098]
[1749844024903,0.04677995,144.94,144.92,0.05191816]
[1749844025398,6.94327995,144.94,144.92,0.05191816]
[1749844025602,0.04677995,144.94,144.92,0.05191816]
[1749844026095,6.94307995,144.94,144.92,0.05191816]
[1749844026294,0.04677995,144.94,144.92,0.05191816]
[1749844026594,6.8979,144.91,144.88,36.1]
[1749844027004,2.355,144.93,144.89,6.8985]
[1749844027207,6.8978,144.91,144.88,36.1]
[1749844027498,0.04880946,144.91,144.88,43.04337385]
[1749844027694,0.04880946,144.91,144.88,36.14457385]
[1749844027893,0.04880946,144.91,144.89,11.05902072]
[1749844028305,0.04880946,144.91,144.9,6.8981]
[1749844029703,38.455,144.99,144.92,6.8968]
[1749844029897,38.455,144.99,144.92,42.9968]
[1749844030091,6.8949,144.97,144.92,36.1]
[1749844030294,6.8949,144.97,144.93,6.8963]
[1749844030604,0.05127471,144.96,144.94,0.04777775]
[1749844031099,0.05127471,144.96,144.94,6.94377775]
[1749844031297,0.05127471,144.96,144.94,0.04777775]
[1749844031493,0.05127471,144.96,144.94,6.94397775]
[1749844031699,0.05127471,144.96,144.94,0.04777775]
[1749844032098,0.05127471,144.96,144.94,6.94397775]
[1749844032901,0.05127471,144.96,144.94,0.04777775]
[1749844033202,6.94657471,144.96,144.94,0.04777775]
[1749844033407,0.05127471,144.96,144.94,0.04777775]
[1749844034300,0.05127471,144.96,144.94,6.94397775]
[1749844034900,0.05127471,144.96,144.94,0.04777775]
[1749844035405,6.8974,144.92,144.89,42.9985]
[1749844035795,6.8974,144.92,144.89,36.1]
[1749844036004,6.897,144.93,144.9,6.8981]
[1749844036202,6.94370799,144.93,144.9,6.94751374]
[1749844036607,0.04670799,144.93,144.9,0.04941374]
[1749844037906,0.04670799,144.93,144.92,6.8972]
[1749844038703,7.99e-06,144.93,144.92,6.8972]
[1749844046804,7.99e-06,144.93,144.91,11.05902072]
[1749844046805,2.355,144.99,144.97,6.8948]
[1749844047902,2.355,144.99,144.97,0.04514076]
[1749844047903,2.40471417,144.99,144.97,0.04514076]
[1749844049113,2.40471417,144.99,144.97,6.93974076]
[1749844049309,2.40471417,144.99,144.97,0.04514076]
[1749844050212,2.40471417,144.99,144.98,6.8943]
[1749844050414,20.0,145.0,144.98,11.05056787]
[1749844050602,1.50278866,145.0,144.99,36.06]
[1749844050807,1.50278866,145.0,144.99,42.9539]
[1749844051917,1.50278866,145.0,144.99,36.06]
[1749844052215,1.50278866,145.0,144.97,0.04514076]
[1749844052606,1.50278866,145.0,144.99,6.8939]
[1749844054219,1.50278866,145.0,144.97,11.09418923]
[1749844054407,1.50278866,145.0,144.97,0.04514076]
[1749844055013,1.50278866,145.0,144.98,6.8941]
[1749844055214,1.50278866,145.0,144.97,0.04514076]
[1749844055411,1.50278866,145.0,144.98,6.8943]
[1749844056408,1.50278866,145.0,144.99,6.8939]
[1749844056605,0.05278431,145.01,144.99,11.04904847]
[1749844056812,2.2378,145.05,145.02,6.8923]
[1749844057010,2.2378,145.05,145.02,11.04904847]
[1749844057215,4.4951,145.07,145.02,11.04904847]
[1749844057418,2.3366,145.1,145.04,11.04904847]
[1749844057712,9.2254,145.1,145.06,11.04904847]
[1749844057912,9.2254,145.1,145.07,36.08635937]
[1749844057913,0.05052314,145.09,145.07,36.08635937]
[1749844059116,0.05052314,145.09,145.03,36.04]
[1749844059308,49.42564847,145.1,145.03,36.04]
[1749844059510,5.51833352,145.09,145.03,36.04]
[1749844060216,6.8913,145.05,145.03,36.04]
[1749844060419,0.04914855,145.07,145.03,36.04]
[1749844060616,0.04914855,145.07,145.03,36.09210987]
[1749844060820,6.8915,145.04,145.03,0.05210987]
[1749844061013,0.04914855,145.07,145.0,36.04]
[1749844061211,5.53736626,145.07,145.0,36.04]
[1749844061421,6.892,145.03,145.0,36.04]
[1749844061918,6.9391713,145.03,145.0,36.08955606]
[1749844062219,0.0471713,145.03,145.01,6.8929]
[1749844063918,0.0471713,145.03,145.02,6.8924]
[1749844066512,0.0471713,145.03,145.02,17.94144847]
[1749844066716,6.9125,145.1,145.05,6.8907]
[1749844066916,6.8894,145.09,145.05,42.9307]
[1749844067113,6.9125,145.1,145.06,6.8904]
[1749844067420,2.3366,145.1,145.05,36.04]
[1749844067620,0.0457984,145.09,145.06,11.09498015]
[1749844067817,0.0457984,145.09,145.07,6.8898]
[1749844068120,0.0457984,145.09,145.06,11.09498015]
[1749844068319,0.0457984,145.09,145.08,6.8896]
[1749844068518,0.0457984,145.09,145.06,11.09498015]
[1749844068716,0.0457984,145.09,145.07,6.8901]
[1749844069220,0.0457984,145.09,145.06,11.09498015]
[1749844069420,0.0457984,145.09,145.06,0.04593168]
[1749844069822,6.8901,145.07,145.06,0.04593168]
[1749844070818,0.0457984,145.09,145.05,36.04]
[1749844070819,6.8905,145.06,145.05,36.04]
[1749844071124,4.6423,145.08,145.02,433.02]
[1749844071318,6.891,145.06,145.02,433.02]
[1749844071519,36.04,145.12,145.05,11.04904847]
[1749844071825,6.93798056,145.1,145.07,6.94233971]
[1749844072225,0.04898056,145.1,145.07,0.05233971]
[1749844072720,0.04898056,145.1,145.07,11.10138818]
[1749844074323,47.06805044,145.09,144.93,47.06805044]
[1749844074528,11.04805044,145.01,144.94,36.02]
[1749844074724,11.04805044,145.01,144.95,36.02]
[1749844074924,6.893,145.01,144.97,6.8947]
[1749844075114,11.04805044,145.03,144.97,6.8947]
[1749844075115,0.04600067,145.0,144.98,0.04703644]
[1749844075427,6.93980067,145.0,144.98,0.04703644]
[1749844075925,0.04600067,145.0,144.98,0.04703644]
[1749844077020,0.04600067,145.0,144.98,6.94133644]
[1749844077220,0.04600067,145.0,144.98,0.04703644]
[1749844077931,0.04600067,145.0,144.99,6.8939]
[1749844079529,0.04600067,145.0,144.99,17.94082252]
[1749844082626,2.2351,145.08,144.99,11.04692252]
[1749844082827,2.1864,145.1,145.06,11.04692252]
[1749844083233,2.1864,145.1,145.05,36.02]
[1749844083430,21.1734933,145.09,145.05,36.02]
[1749844083729,21.1734933,145.09,145.0,11.04692252]
[1749844083730,6.8901,145.07,145.06,0.04447608]
[1749844083934,0.04999745,145.08,145.02,42.9122]
[1749844084136,0.04999745,145.08,145.02,36.02]
[1749844084328,6.8913,145.05,145.02,36.02]
[1749844084526,11.04692252,145.07,144.99,36.02]
[1749844084727,5.53653129,145.06,144.99,42.9138]
[1749844084927,0.04801703,145.04,145.01,0.05248733]
[1749844085330,0.04801703,145.04,145.01,6.94538733]
[1749844085829,0.04801703,145.04,145.01,0.05248733]
[1749844086637,6.8922,145.03,145.01,0.05248733]
[1749844087137,0.04801703,145.04,145.01,0.05248733]
[1749844089031,7.77033138,145.04,145.01,0.05248733]
[1749844089237,6.8924,145.02,145.01,0.05248733]
[1749844096944,6.8942,144.99,144.96,439.8552]
[1749844097240,4.695,145.03,144.96,42.9152]
[1749844097443,6.8937,145.0,144.96,36.02]
[1749844097942,6.8931,145.01,144.96,36.02]
[1749844098143,0.04668588,144.99,144.97,0.05141812]
[1749844098539,2.1867,145.04,144.97,11.10447147]
[1749844098735,36.02,145.06,144.99,11.05305335]
[1749844098937,4.6487,145.08,145.0,36.02]
[1749844099137,10.19289655,145.07,145.0,42.9131]
[1749844099334,5.5088575,145.06,145.0,42.9131]
[1749844099536,6.8921,145.03,145.02,0.04969418]
[1749844100247,6.94251765,145.04,145.02,0.04969418]
[1749844100444,0.05091765,145.04,145.02,0.04969418]
[1749844100939,6.94261765,145.04,145.02,0.04969418]
[1749844101138,6.94261765,145.04,145.02,6.94189418]
[1749844101736,6.892,145.03,145.02,0.04969418]
[1749844102743,6.8935,145.0,144.98,6.894]
[1749844102958,11.04742037,145.07,144.99,6.8935]
[1749844103246,6.8927,145.02,144.99,6.8935]
[1749844103443,11.04742037,145.07,144.99,6.8935]
[1749844103645,0.05079413,145.04,145.02,0.04555562]
[1749844104349,12.38833753,145.03,145.02,0.04555562]
[1749844104547,6.892,145.03,145.02,0.04555562]
[1749844105835,12.38688292,145.03,145.02,0.04555562]
[1749844106039,0.05079413,145.04,145.02,0.04555562]
[1749844106337,12.80047661,145.11,145.02,0.04555562]
[1749844106338,19.57894093,145.19,145.03,580.48528986]
[1749844106644,13.22578986,145.16,145.05,11.04528986]
[1749844106843,45.50357303,145.15,145.04,36.02]
[1749844107148,45.50357303,145.15,145.0,2.3645]
[1749844107149,11.09061999,145.11,145.08,0.04888081]
[1749844107443,11.09061999,145.11,145.02,42.912]
[1749844107444,11.04528986,145.09,145.02,36.02]
[1749844107745,6.8921,145.03,144.99,36.02]
[1749844108143,6.8918,145.04,144.99,36.02]
[1749844108446,0.04870037,145.03,145.0,0.04464061]
[1749844108843,6.8927,145.02,145.0,0.04464061]
[1749844109147,0.04870037,145.03,145.0,0.04464061]
[1749844109445,6.94100037,145.03,145.0,0.04464061]
[1749844109644,0.04870037,145.03,145.0,0.04464061]
[1749844110541,0.04870037,145.03,145.01,11.04528986]
[1749844110746,37.0,145.11,145.01,11.04528986]
[1749844110951,2.2354,145.1,145.03,11.04528986]
[1749844111150,2.2354,145.1,145.03,48.04528986]
[1749844111644,0.04801375,145.08,145.05,6.93769528]
[1749844111854,0.04801375,145.08,145.05,0.04689528]
[1749844112447,0.04801375,145.08,145.06,6.8905]
[1749844112651,0.04801375,145.08,145.05,11.09218514]
[1749844112844,0.04801375,145.08,145.06,6.8905]
[1749844113145,0.04801375,145.08,145.05,0.04689528]
[1749844114152,6.8905,145.06,145.05,0.04689528]
[1749844114651,11.08739324,145.08,145.0,39.1858]
[1749844114853,11.03937949,145.08,145.0,39.1858]
[1749844115049,6.8918,145.04,145.01,6.8928]
[1749844115248,11.03937949,145.08,145.0,39.1858]
[1749844115552,11.03937949,145.08,145.03,0.0493146]
[1749844115553,0.04969136,145.05,145.03,0.0493146]
[1749844116054,6.8917,145.04,145.03,0.0493146]
[1749844118951,6.8927,145.02,145.0,37.0]
[1749844119256,6.8927,145.02,144.99,6.8938]
[1749844119648,6.8922,145.03,145.0,6.8933]
[1749844119845,6.8922,145.03,144.98,11.03937949]
[1749844119846,0.04741684,145.03,144.98,11.03937949]
[1749844121250,6.93971684,145.03,144.98,11.03937949]
[1749844122257,6.93971684,145.03,145.0,6.8931]
[1749844122456,0.04741684,145.03,145.0,6.8931]
[1749844122859,0.04741684,145.03,145.01,6.8929]
[1749844123061,6.93941684,145.03,144.98,11.03937949]
[1749844123560,0.04741684,145.03,145.0,6.8931]
[1749844124063,0.04741684,145.03,145.01,6.8927]
[1749844124548,0.04741684,145.03,145.02,6.8924]
[1749844124757,2.2622,145.08,145.02,48.03937949]
[1749844125250,9.1521,145.08,145.05,6.8909]
[1749844125853,6.93584296,145.08,145.05,6.94258221]
[1749844126054,6.8901,145.07,145.05,0.05168221]
[1749844126257,0.04594296,145.08,145.05,0.05168221]
[1749844126660,6.93584296,145.08,145.05,0.05168221]
[1749844128560,0.04594296,145.08,145.05,0.05168221]
[1749844129265,6.93584296,145.08,145.05,0.05168221]
[1749844130657,0.04594296,145.08,145.05,0.05168221]
[1749844131056,0.04594296,145.08,145.06,43.8905]
[1749844131360,0.04594296,145.08,145.06,44.4503169]
[1749844131556,48.9016169,145.17,145.06,46.6698169]
[1749844131753,6.8865,145.15,145.11,6.8881]
[1749844131958,5.46135237,145.14,145.1,44.4503169]
[1749844132260,6.8861,145.16,145.12,6.8875]
[1749844132459,0.04582164,145.15,145.13,0.04969891]
[1749844133966,6.8867,145.14,145.13,0.04969891]
[1749844135757,6.93222164,145.15,145.13,0.04969891]
[1749844136269,0.04582164,145.15,145.13,0.04969891]
[1749844136969,6.93212164,145.15,145.13,0.04969891]
[1749844138763,0.04582164,145.15,145.13,0.04969891]
[1749844139167,0.04582164,145.15,145.13,6.93659891]
[1749844139670,0.04582164,145.15,145.14,36.98]
[1749844139876,0.04582164,145.15,145.14,43.8667]
[1749844140263,6.8833,145.22,145.18,6.8845]
[1749844140468,48.10865252,145.26,145.18,37.08]
[1749844140469,37.08,145.26,145.18,37.08]
[1749844140673,2.356,145.25,145.19,11.02865252]
[1749844140877,9.2379,145.25,145.21,6.8831]
[1749844141080,2.356,145.25,145.21,6.8831]
[1749844141268,0.04522794,145.24,145.22,0.04543381]
[1749844141873,6.92732794,145.24,145.22,0.04543381]
[1749844142168,0.04522794,145.24,145.22,0.04543381]
[1749844142373,0.04522794,145.24,145.23,11.02865252]
[1749844142572,9.061,145.29,145.23,11.02865252]
[1749844142768,6.8798,145.29,145.23,11.02865252]
[1749844143274,6.8793,145.3,145.26,6.8807]
[1749844143476,0.04922267,145.29,145.27,0.04821269]
[1749844143778,6.92902267,145.29,145.27,0.04821269]
[1749844143980,0.04922267,145.29,145.27,0.04821269]
[1749844144275,6.8801,145.28,145.27,0.04821269]
[1749844145983,0.04922267,145.29,145.27,0.04821269]
[1749844146482,0.04922267,145.29,145.28,6.8801]
[1749844146783,0.04922267,145.29,145.28,17.90875252]
[1749844148379,2.3008,145.35,145.3,6.879]
[1749844148687,2.3648,145.37,145.3,11.02865252]
[1749844148888,6.8768,145.35,145.31,43.9184]
[1749844149086,2.3648,145.37,145.31,37.04]
[1749844149282,0.04482946,145.35,145.33,0.04648635]
[1749844150082,0.04482946,145.35,145.34,6.8773]
[1749844150286,0.04482946,145.35,145.33,0.04648635]
[1749844151783,6.8773,145.34,145.33,0.04648635]
[1749844151986,0.04482946,145.35,145.31,37.04]
[1749844152186,2.26562946,145.35,145.28,37.04]
[1749844152379,11.02865252,145.34,145.26,37.04]
[1749844152581,11.02865252,145.32,145.26,37.04]
[1749844152781,11.02865252,145.3,145.26,37.04]
[1749844152981,6.881,145.27,145.23,440.4822]
[1749844153183,0.04845043,145.26,145.24,0.05070181]
[1749844153588,0.04845043,145.26,145.24,6.93260181]
[1749844154791,0.04845043,145.26,145.25,6.8815]
[1749844154981,0.04845043,145.26,145.24,0.05070181]
[1749844155181,0.04845043,145.26,145.25,6.8815]
[1749844155492,0.04845043,145.26,145.24,0.05070181]
[1749844156086,0.04845043,145.26,145.24,6.93240181]
[1749844156492,0.04845043,145.26,145.24,0.05070181]
[1749844156892,6.8815,145.25,145.24,0.05070181]
[1749844157190,0.04845043,145.26,145.24,0.05070181]
[1749844157389,6.92975043,145.26,145.24,0.05070181]
[1749844157693,0.04845043,145.26,145.24,0.05070181]
[1749844158395,0.04845043,145.26,145.25,6.8815]
[1749844158791,0.04845043,145.26,145.24,0.05070181]
[1749844158995,0.04845043,145.26,145.24,6.93260181]
[1749844159297,0.04845043,145.26,145.24,0.05070181]
[1749844161895,0.04845043,145.26,145.24,6.93260181]
[1749844162499,0.04845043,145.26,145.25,6.8815]
[1749844162795,2.1768,145.34,145.25,11.02865252]
[1749844163000,2.2208,145.35,145.24,0.05070181]
[1749844163001,4.4196,145.35,145.27,11.02865252]
[1749844163192,6.8774,145.34,145.29,11.02865252]
[1749844163696,6.8778,145.33,145.29,17.90815252]
[1749844163894,6.8778,145.33,145.3,0.04470433]
[1749844163895,6.92395643,145.33,145.3,0.04470433]
[1749844164094,0.04615643,145.33,145.3,0.04470433]
[1749844164295,0.04615643,145.33,145.3,6.92370433]
[1749844164595,0.04615643,145.33,145.3,0.04470433]
[1749844165299,6.8787,145.31,145.3,0.04470433]
[1749844166296,6.8796,145.29,145.24,396.32]
[1749844166500,13.28665252,145.34,145.25,37.02]
[1749844167202,2.258,145.34,145.27,11.02865252]
[1749844167496,0.04925231,145.32,145.29,0.04444786]
[1749844167699,6.92785231,145.32,145.29,6.92404786]
[1749844167902,0.04925231,145.32,145.29,0.04444786]
[1749844168405,6.879,145.31,145.29,0.04444786]
[1749844168991,6.8792,145.3,145.29,0.04444786]
[1749844169898,6.8811,145.26,145.22,37.02]
[1749844170198,2.2093,145.29,145.22,37.02]
[1749844170398,6.881,145.27,145.22,37.02]
[1749844170602,6.881,145.27,145.24,6.8817]
[1749844170793,6.92609225,145.27,145.24,6.92945554]
[1749844171000,0.04509225,145.27,145.25,6.8815]
[1749844171199,0.04509225,145.27,145.24,0.04775554]
[1749844171600,0.04509225,145.27,145.24,6.92955554]
[1749844171801,0.04509225,145.27,145.24,0.04775554]
[1749844172205,0.04509225,145.27,145.25,6.8814]
[1749844172503,0.04509225,145.27,145.24,0.04775554]
[1749844172806,0.04509225,145.27,145.26,6.8811]